bitfinex-derivatives/quotes_BNBF0:USTF0_20230831
["timestamp","ask_amount","ask_price","bid_price","bid_amount"]
[1693493537720,0.07338297,223.37,223.16,0.0735407]
[1693493537920,0.07338297,223.37,223.17,0.18344032]
[1693493546419,0.07338297,223.37,223.16,0.18344032]
[1693493546725,0.07338297,223.37,223.17,0.18354204]
[1693493546930,0.07338297,223.37,223.15,0.0735407]
[1693493547125,0.07338297,223.37,223.16,0.18354746]
[1693493549625,0.07338297,223.37,223.16,0.25708816]
[1693493549825,0.07338297,223.37,223.17,0.18354746]
[1693493550827,0.07338297,223.37,223.15,0.0735407]
[1693493551028,0.07338297,223.37,223.16,0.25707031]
[1693493551328,0.07338297,223.37,223.17,0.18352961]
[1693493552427,0.07338297,223.37,223.15,0.0735407]
[1693493552626,0.07338297,223.37,223.16,0.25706945]
[1693493552822,0.07338297,223.37,223.17,0.18352875]
[1693493556227,0.07338297,223.38,223.17,0.18352875]
[1693493566741,0.07338297,223.39,223.17,0.18352875]
[1693493567540,0.07338297,223.38,223.17,0.18352875]
[1693493570038,0.07338297,223.38,223.16,0.18352875]
[1693493570244,0.07338297,223.38,223.17,0.18336216]
[1693493570445,0.07338297,223.38,223.15,0.0735407]
[1693493570640,0.07338297,223.38,223.16,0.18336082]
[1693493571845,0.07338297,223.38,223.16,0.25690152]
[1693493572045,0.07338297,223.38,223.17,0.18336082]
[1693493576944,0.07338297,223.37,223.17,0.18336082]
[1693493577149,0.07338297,223.37,223.16,0.18336082]
[1693493577342,0.07338297,223.37,223.17,0.18337683]
[1693493577545,0.07338297,223.37,223.15,0.0735407]
[1693493577745,0.07338297,223.37,223.16,0.18337865]
[1693493579042,0.07338297,223.32,223.1,0.0735407]
[1693493579246,0.07338297,223.31,223.11,0.18371406]
[1693493579447,0.07338297,223.31,223.09,0.0735407]
[1693493579648,0.07338297,223.31,223.1,0.18371697]
[1693493579850,0.07338297,223.33,223.1,0.18371697]
[1693493580046,0.07338297,223.33,223.11,0.18371697]
[1693493580248,0.07338297,223.33,223.07,0.0735407]
[1693493580447,0.07338297,223.34,223.08,0.18368956]
[1693493581843,0.07338297,223.35,223.08,0.18368956]
[1693493582049,0.07338297,223.35,223.09,0.18368956]
[1693493582250,0.07338297,223.35,223.07,0.18368956]
[1693493582450,0.07338297,223.35,223.08,0.18368956]
[1693493582750,0.07338297,223.35,223.09,0.18368956]
[1693493582951,0.07338297,223.35,223.1,0.18368956]
[1693493583154,0.07338297,223.35,223.07,0.18368956]
[1693493583347,0.07338297,223.36,223.08,0.18368956]
[1693493583549,0.07338297,223.36,223.09,0.18368956]
[1693493583847,0.07338297,223.36,223.1,0.18368956]
[1693493584047,0.07338297,223.36,223.07,0.18368956]
[1693493584248,0.07338297,223.36,223.08,0.18368956]
[1693493584448,0.07338297,223.36,223.09,0.18368956]
[1693493584652,0.07338297,223.36,223.06,0.18368956]
[1693493584952,0.07338297,223.37,223.07,0.18368956]
[1693493585148,0.07338297,223.37,223.08,0.18368956]
[1693493585455,0.07338297,223.37,223.09,0.18368956]
[1693493585656,0.07338297,223.37,223.06,0.18368956]
[1693493585856,0.07338297,223.37,223.07,0.18368956]
[1693493586050,0.07338297,223.37,223.06,0.18368956]
[1693493587458,0.07338297,223.37,223.05,0.18368956]
[1693493587753,0.07338297,223.38,223.06,0.18368956]
[1693493587960,0.07338297,223.38,223.04,0.0735407]
[1693493587961,0.07338297,223.38,223.07,0.18368956]
[1693493588258,0.07338297,223.38,223.08,0.18368956]
[1693493588451,0.07338297,223.38,223.09,0.18368956]
[1693493588652,0.07338297,223.38,223.1,0.18368956]
[1693493588854,0.07338297,223.38,223.11,0.18368956]
[1693493589056,0.07338297,223.38,223.05,0.18368956]
[1693493589359,0.07338297,223.38,223.06,0.18368956]
[1693493589559,0.07338297,223.38,223.05,0.18368956]
[1693493589760,0.07338297,223.38,223.06,0.18368956]
[1693493589959,0.07338297,223.38,223.05,0.18368956]
[1693493590161,0.07338297,223.38,223.06,0.18368956]
[1693493590455,0.07338297,223.38,223.07,0.18368956]
[1693493590659,0.07338297,223.38,223.04,0.0735407]
[1693493590660,0.07338297,223.38,223.05,0.18368956]
[1693493590859,0.07338297,223.38,223.06,0.18368956]
[1693493591059,0.07338297,223.38,223.07,0.18368956]
[1693493591260,0.07338297,223.38,223.05,0.18368956]
[1693493591462,0.07338297,223.38,223.06,0.18368956]
[1693493591661,0.07338297,223.38,223.07,0.18368956]
[1693493591961,0.07338297,223.39,223.08,0.18368956]
[1693493592156,0.07338297,223.39,223.04,0.18368956]
[1693493592358,0.07338297,223.38,223.05,0.18368956]
[1693493592661,0.07338297,223.38,223.06,0.18368956]
[1693493592860,0.07338297,223.38,223.07,0.18368956]
[1693493593062,0.07338297,223.38,223.04,0.18368956]
[1693493593261,0.07338297,223.38,223.05,0.18368956]
[1693493593461,0.07338297,223.38,223.06,0.18368956]
[1693493593664,0.07338297,223.38,223.04,0.18368956]
[1693493593858,0.07338297,223.38,223.05,0.18368956]
[1693493594062,0.07338297,223.38,223.06,0.18368956]
[1693493594258,0.07338297,223.39,223.04,0.18368956]
[1693493594457,0.07338297,223.39,223.05,0.18368956]
[1693493594662,0.07338297,223.39,223.06,0.18368956]
[1693493594965,0.07338297,223.39,223.07,0.18368956]
[1693493595157,0.07338297,223.38,223.08,0.18368956]
[1693493595360,0.07338297,223.38,223.09,0.18368956]
[1693493595662,0.07338297,223.38,223.1,0.18368956]
[1693493595862,0.07338297,223.38,223.04,0.18368956]
[1693493596064,0.07338297,223.38,223.05,0.18368956]
[1693493596260,0.07338297,223.38,223.06,0.18368956]
[1693493596462,0.07338297,223.38,223.07,0.18368956]
[1693493596665,0.07338297,223.38,223.03,0.25723026]
[1693493596865,0.07338297,223.38,223.04,0.18368956]
[1693493597565,0.07338297,223.38,223.05,0.18368956]
[1693493597766,0.07338297,223.38,223.03,0.18368956]
[1693493597961,0.07338297,223.38,223.04,0.18368956]
[1693493598264,0.07338297,223.38,223.05,0.18368956]
[1693493598465,0.07338297,223.38,223.06,0.18368956]
[1693493598666,0.07338297,223.38,223.07,0.18368956]
[1693493598866,0.07338297,223.38,223.03,0.18368956]
[1693493599167,0.07338297,223.38,223.04,0.18368956]
[1693493599363,0.07338297,223.38,223.03,0.18368956]
[1693493599568,0.07338297,223.38,223.04,0.18368956]
[1693493599764,0.07338297,223.38,223.03,0.25723026]
[1693493599963,0.07338297,223.44,223.08,0.0735407]
[1693493600167,0.07338297,223.44,223.09,0.18368956]
[1693493602064,0.07338297,223.44,223.09,0.25723026]
[1693493602263,0.07338297,223.44,223.1,0.18368956]
[1693493605074,0.07338297,223.44,223.11,0.18368956]
[1693493605271,0.07338297,223.43,223.12,0.18368956]
[1693493605476,0.07338297,223.43,223.13,0.18368956]
[1693493605477,0.07338297,223.41,223.13,0.18368956]
[1693493605676,0.07338297,223.41,223.07,0.18368956]
[1693493605871,0.07338297,223.41,223.08,0.18368956]
[1693493606074,0.07338297,223.41,223.09,0.18368956]
[1693493606274,0.07338297,223.42,223.07,0.18368956]
[1693493606577,0.07338297,223.41,223.08,0.18368956]
[1693493606776,0.07338297,223.41,223.09,0.18368956]
[1693493606972,0.07338297,223.41,223.07,0.18368956]
[1693493607276,0.07338297,223.41,223.08,0.18368956]
[1693493611382,0.07338297,223.4,223.08,0.18368956]
[1693493612975,0.07338297,223.41,223.08,0.25723026]
[1693493613179,0.07338297,223.41,223.09,0.18368956]
[1693493614980,0.07338297,223.4,223.09,0.18368956]
[1693493615482,0.07338297,223.41,223.09,0.18368956]
[1693493616182,0.07338297,223.4,223.09,0.18368956]
[1693493618282,0.07338297,223.4,223.09,0.25723026]
[1693493618578,0.07338297,223.4,223.1,0.18368956]
[1693493624085,0.07338297,223.4,223.1,0.25723026]
[1693493624287,0.07338297,223.4,223.11,0.18368956]
[1693493625882,0.07338297,223.41,223.11,0.18368956]
[1693493626385,0.07338297,223.4,223.11,0.18368956]
[1693493629378,0.07338297,223.4,223.11,0.25723026]
[1693493629586,0.07338297,223.4,223.12,0.18368956]
[1693493631388,0.07338297,223.39,223.12,0.18368956]
[1693493631890,0.07338297,223.39,223.12,0.25723026]
[1693493632087,0.07338297,223.39,223.13,0.18368956]
[1693493633288,0.07338297,223.38,223.13,0.25723026]
[1693493633486,0.07338297,223.38,223.14,0.18368956]
[1693493634287,0.07338297,223.37,223.14,0.25723026]
[1693493634488,0.07338297,223.37,223.15,0.18368956]
[1693493634687,0.07338297,223.37,223.14,0.18368956]
[1693493634886,0.07338297,223.37,223.15,0.18368956]
[1693493635288,0.07338297,223.37,223.16,0.18368956]
[1693493635489,0.07338297,223.37,223.15,0.18368956]
[1693493635690,0.07338297,223.37,223.16,0.18315745]
[1693493635891,0.07338297,223.37,223.14,0.0735407]
[1693493636090,0.07338297,223.37,223.15,0.18317006]
[1693493639292,2.44407433,223.5,223.15,0.18317006]
[1693493639293,0.07338297,223.36,223.15,0.18317006]
[1693493641191,0.07338297,223.37,223.15,0.18317006]
[1693493646294,0.07338297,223.37,223.15,0.25671076]
[1693493646494,0.07338297,223.37,223.16,0.18317006]
[1693493646896,0.07338297,223.38,223.16,0.25671076]
[1693493647195,0.07338297,223.38,223.17,0.18317006]
[1693493648295,0.07338297,223.38,223.15,0.0735407]
[1693493648492,0.07338297,223.38,223.16,0.18301121]
[1693493648696,0.07338297,223.38,223.16,0.25655191]
[1693493648896,0.07338297,223.38,223.17,0.18301121]
[1693493649495,0.07338297,223.38,223.15,0.0735407]
[1693493649691,0.07338297,223.38,223.16,0.18302251]
[1693493650596,0.07338297,223.37,223.16,0.18302251]
[1693493650792,0.07338297,223.37,223.14,0.0735407]
[1693493650995,0.07338297,223.37,223.15,0.1830916]
[1693493653498,0.07338297,223.37,223.15,0.2566323]
[1693493653797,0.07338297,223.37,223.16,0.1830916]
[1693493658003,0.07342234,223.37,223.16,0.1830916]
[1693493660204,0.07342234,223.36,223.16,0.1830916]
[1693493661606,0.07342234,223.37,223.16,0.1830916]
[1693493662300,0.07342234,223.36,223.16,0.1830916]
[1693493664007,0.07342234,223.37,223.16,0.1830916]
[1693493667315,0.07342234,223.36,223.16,0.1830916]
[1693493667612,0.07342234,223.36,223.15,0.1830916]
[1693493667816,0.07342234,223.36,223.16,0.18316081]
[1693493668015,0.07342234,223.36,223.14,0.07313536]
[1693493668215,0.07342234,223.36,223.15,0.18316841]
[1693493669515,0.07342234,223.36,223.13,0.07313536]
[1693493669718,0.07342234,223.36,223.14,0.1832063]
[1693493669913,0.07342234,223.32,223.09,0.07313536]
[1693493670119,0.07342234,223.31,223.1,0.18346657]
[1693493670518,0.07342234,223.3,223.08,0.07313536]
[1693493670718,0.07342234,223.32,223.09,0.1835018]
[1693493670917,0.07342234,223.32,223.07,0.1835018]
[1693493671118,0.07342234,223.32,223.08,0.1835018]
[1693493671319,0.07342234,223.32,223.09,0.1835018]
[1693493671513,0.07342234,223.32,223.06,0.07313536]
[1693493671717,0.07342234,223.32,223.07,0.18348782]
[1693493671914,0.07342234,223.33,223.07,0.18348782]
[1693493672620,0.07342234,223.32,223.06,0.18348782]
[1693493672820,0.07342234,223.34,223.07,0.18348782]
[1693493673019,0.07342234,223.34,223.08,0.18348782]
[1693493673218,0.07342234,223.34,223.05,0.18348782]
[1693493673520,0.07342234,223.34,223.06,0.18348782]
[1693493673721,0.07342234,223.35,223.07,0.18348782]
[1693493674020,0.07342234,223.35,223.08,0.18348782]
[1693493674320,0.07342234,223.35,223.09,0.18348782]
[1693493674621,0.07342234,223.35,223.03,0.07313536]
[1693493674920,0.07342234,223.35,223.04,0.18349214]
[1693493675120,0.07342234,223.35,223.05,0.18349214]
[1693493675318,0.07342234,223.35,223.06,0.18349214]
[1693493675518,0.07342234,223.35,223.03,0.18349214]
[1693493675720,0.07342234,223.36,223.04,0.18349214]
[1693493675921,0.07342234,223.36,223.05,0.18349214]
[1693493676121,0.07342234,223.36,223.06,0.18349214]
[1693493676416,0.07342234,223.36,223.07,0.18349214]
[1693493676623,0.07342234,223.35,223.08,0.18349214]
[1693493676921,0.07342234,223.35,223.01,0.07313536]
[1693493676922,0.07342234,223.36,223.09,0.18349214]
[1693493677118,0.07342234,223.36,223.01,0.07313536]
[1693493677323,0.07342234,223.36,223.02,0.18351516]
[1693493678820,0.07342234,223.37,223.02,0.18351516]
[1693493679016,0.07342234,223.37,223.01,0.18351516]
[1693493679322,0.07342234,223.37,223.02,0.18351516]
[1693493679522,0.07342234,223.37,223.01,0.18351516]
[1693493679724,0.07342234,223.37,223.02,0.18351516]
[1693493679923,0.07342234,223.37,223.03,0.18351516]
[1693493680123,0.07342234,223.37,223.01,0.18351516]
[1693493680324,0.07342234,223.37,223.02,0.18351516]
[1693493680523,0.07342234,223.37,223.03,0.18351516]
[1693493680724,0.07342234,223.37,223.0,0.07313536]
[1693493680725,0.07342234,223.37,223.01,0.18351516]
[1693493680923,0.07342234,223.37,223.02,0.18351516]
[1693493681127,0.07342234,223.37,223.03,0.18351516]
[1693493681418,0.07342234,223.37,223.04,0.18351516]
[1693493681622,0.07342234,223.37,223.05,0.18351516]
[1693493681823,0.07342234,223.37,223.01,0.18351516]
[1693493682018,0.07342234,223.37,223.02,0.18351516]
[1693493682223,0.07342234,223.37,223.03,0.18351516]
[1693493682423,0.07342234,223.37,223.0,0.18351516]
[1693493682624,0.07342234,223.37,222.99,0.07313536]
[1693493682625,0.07342234,223.37,223.01,0.18351516]
[1693493682823,0.07342234,223.37,223.02,0.18351516]
[1693493683024,0.07342234,223.37,223.03,0.18351516]
[1693493683219,0.07342234,223.37,223.04,0.18351516]
[1693493683423,0.07342234,223.37,223.0,0.18351516]
[1693493683624,0.07342234,223.37,223.01,0.18351516]
[1693493683821,0.07342234,223.37,223.02,0.18351516]
[1693493684125,0.07342234,223.37,223.03,0.18351516]
[1693493684326,0.07342234,223.37,223.0,0.18351516]
[1693493684621,0.07342234,223.37,223.01,0.18351516]
[1693493684826,0.07342234,223.37,223.02,0.18351516]
[1693493685028,0.07342234,223.37,223.03,0.18351516]
[1693493685221,0.07342234,223.37,223.04,0.18351516]
[1693493685422,0.07342234,223.37,223.0,0.18351516]
[1693493685624,0.07342234,223.37,223.01,0.18351516]
[1693493685826,0.07342234,223.37,223.02,0.18351516]
[1693493686028,0.07342234,223.37,223.03,0.18351516]
[1693493686223,0.07342234,223.37,223.04,0.18351516]
[1693493686426,0.07342234,223.37,223.0,0.18351516]
[1693493686623,0.07342234,223.37,223.01,0.18351516]
[1693493686828,0.07342234,223.37,223.0,0.18351516]
[1693493687028,0.07342234,223.37,223.01,0.18351516]
[1693493687329,0.07342234,223.37,223.02,0.18351516]
[1693493687524,0.07342234,223.37,223.03,0.18351516]
[1693493687729,0.07342234,223.37,223.04,0.18351516]
[1693493687928,0.07342234,223.37,223.0,0.18351516]
[1693493688128,0.07342234,223.37,223.01,0.18351516]
[1693493688329,0.07342234,223.37,223.0,0.18351516]
[1693493688529,0.07342234,223.37,223.01,0.18351516]
[1693493688829,0.07342234,223.37,223.02,0.18351516]
[1693493689022,0.07342234,223.37,223.0,0.18351516]
[1693493689226,0.07342234,223.37,223.01,0.18351516]
[1693493689529,0.07342234,223.37,223.02,0.18351516]
[1693493689729,0.07342234,223.37,223.0,0.18351516]
[1693493689924,0.07342234,223.37,223.01,0.18351516]
[1693493690123,0.07342234,223.37,223.02,0.18351516]
[1693493690323,0.07342234,223.37,223.03,0.18351516]
[1693493690523,0.07342234,223.37,223.04,0.18351516]
[1693493690721,0.07342234,223.37,223.05,0.18351516]
[1693493690924,0.07342234,223.37,223.0,0.18351516]
[1693493691123,0.07342234,223.37,223.01,0.18351516]
[1693493691324,0.07342234,223.37,223.02,0.18351516]
[1693493691527,0.07342234,223.37,223.0,0.18351516]
[1693493691724,0.07342234,223.37,223.01,0.18351516]
[1693493691928,0.07342234,223.37,222.99,0.07313536]
[1693493691929,0.07342234,223.37,223.02,0.18351516]
[1693493692123,0.07342234,223.37,223.03,0.18351516]
[1693493692328,0.07342234,223.37,223.0,0.18351516]
[1693493692526,0.07342234,223.37,223.01,0.18351516]
[1693493692730,0.07342234,223.36,223.02,0.18351516]
[1693493692925,0.07342234,223.36,223.03,0.18351516]
[1693493693129,0.07342234,223.36,223.01,0.18351516]
[1693493693432,0.07342234,223.36,223.02,0.18351516]
[1693493693625,0.07342234,223.36,223.03,0.18351516]
[1693493693829,0.07342234,223.36,223.0,0.07313536]
[1693493693830,0.07342234,223.36,223.01,0.18351516]
[1693493694127,0.07342234,223.36,223.02,0.18351516]
[1693493694432,0.07342234,223.36,223.03,0.18351516]
[1693493694631,0.07342234,223.36,223.01,0.18351516]
[1693493694828,0.07342234,223.36,223.02,0.18351516]
[1693493695029,0.07342234,223.36,223.01,0.18351516]
[1693493695229,0.07342234,223.36,223.02,0.18351516]
[1693493695427,0.07342234,223.36,223.03,0.18351516]
[1693493695728,0.07342234,223.35,223.04,0.18351516]
[1693493695933,0.07342234,223.35,223.05,0.18351516]
[1693493696130,0.07342234,223.35,223.02,0.18351516]
[1693493696334,0.07342234,223.35,223.03,0.18351516]
[1693493696634,0.07342234,223.35,223.04,0.18351516]
[1693493696830,0.07342234,223.35,223.0,0.07313536]
[1693493696831,0.07342234,223.35,223.05,0.18351516]
[1693493697033,0.07342234,223.35,223.01,0.18351516]
[1693493697234,0.07342234,223.35,223.02,0.18351516]
[1693493697730,0.07342234,223.34,223.02,0.18351516]
[1693493698035,0.07342234,223.35,223.02,0.18351516]
[1693493699234,0.07342234,223.34,223.02,0.25665052]
[1693493699435,0.07342234,223.34,223.03,0.18351516]
[1693493700530,0.07342234,223.33,223.03,0.18351516]
[1693493701936,0.07342234,223.32,223.03,0.18351516]
[1693493702733,0.07342234,223.31,223.03,0.25665052]
[1693493702935,0.07342234,223.31,223.04,0.18351516]
[1693493703738,0.07342234,223.3,223.05,0.07313536]
[1693493704038,0.07342234,223.3,223.06,0.18351516]
[1693493704840,0.07342234,223.28,223.07,0.07313536]
[1693493705034,0.07342234,223.28,223.08,0.18351516]
[1693493707041,0.07342234,223.28,223.08,0.25665052]
[1693493707241,0.07342234,223.28,223.09,0.18351516]
[1693493707541,0.07342234,223.29,223.09,0.18351516]
[1693493714235,0.07342234,223.3,223.09,0.18351516]
[1693493721346,0.07342234,223.31,223.09,0.18351516]
[1693493721548,0.07342234,223.3,223.09,0.18351516]
[1693493723249,0.07342234,223.31,223.09,0.18351516]
[1693493723644,0.07342234,223.3,223.09,0.18351516]
[1693493724150,0.07342234,223.3,223.07,0.07313536]
[1693493724449,0.07342234,223.3,223.08,0.25651943]
[1693493724649,0.07342234,223.3,223.09,0.18338407]
[1693493727854,0.07342234,223.35,223.12,0.07313536]
[1693493728048,0.07342234,223.35,223.13,0.25651943]
[1693493728254,0.07342234,223.38,223.14,0.18338407]
[1693493728448,0.07342234,223.38,223.13,0.18338407]
[1693493728650,0.07342234,223.38,223.14,0.18338407]
[1693493728852,0.07342234,223.38,223.15,0.18338407]
[1693493729047,0.07342234,223.38,223.16,0.18338407]
[1693493729252,0.07342234,223.38,223.12,0.07313536]
[1693493729454,0.07342234,223.38,223.13,0.18303659]
[1693493730254,0.07342234,223.39,223.13,0.18303659]
[1693493730555,0.07342234,223.39,223.14,0.18303659]
[1693493730752,0.07342234,223.39,223.12,0.18303659]
[1693493730948,0.07342234,223.39,223.13,0.18303659]
[1693493731151,0.07342234,223.39,223.12,0.18303659]
[1693493731348,0.07342234,223.4,223.13,0.18303659]
[1693493731554,0.07342234,223.4,223.14,0.18303659]
[1693493731746,0.07342234,223.4,223.11,0.18303659]
[1693493731948,0.07342234,223.4,223.12,0.18303659]
[1693493732151,0.07342234,223.4,223.13,0.18303659]
[1693493732352,0.07342234,223.41,223.14,0.18303659]
[1693493732552,0.07342234,223.41,223.15,0.18303659]
[1693493732753,0.07342234,223.41,223.11,0.18303659]
[1693493733055,0.07342234,223.41,223.12,0.18303659]
[1693493733255,0.07342234,223.41,223.13,0.18303659]
[1693493733454,0.07342234,223.41,223.14,0.18303659]
[1693493733651,0.07342234,223.41,223.1,0.18303659]
[1693493733849,0.07342234,223.41,223.11,0.18303659]
[1693493734050,0.07342234,223.41,223.12,0.18303659]
[1693493734251,0.07342234,223.41,223.09,0.07313536]
[1693493734252,0.07342234,223.42,223.13,0.18303659]
[1693493734453,0.07342234,223.42,223.1,0.18303659]
[1693493734651,0.07342234,223.42,223.11,0.18303659]
[1693493734856,0.07342234,223.42,223.12,0.18303659]
[1693493735054,0.07342234,223.42,223.09,0.07313536]
[1693493735055,0.07342234,223.42,223.13,0.18303659]
[1693493735250,0.07342234,223.42,223.14,0.18303659]
[1693493735453,0.07342234,223.42,223.1,0.18303659]
[1693493735649,0.07342234,223.42,223.11,0.18303659]
[1693493735855,0.07342234,223.42,223.12,0.18303659]
[1693493736157,0.07342234,223.42,223.13,0.18303659]
[1693493736357,0.07342234,223.42,223.14,0.18303659]
[1693493736652,0.07342234,223.42,223.15,0.18303659]
[1693493736855,0.07342234,223.42,223.16,0.18303659]
[1693493737056,0.07342234,223.42,223.08,0.07313536]
[1693493737357,0.07342234,223.42,223.09,0.18292444]
[1693493738455,0.07342234,223.42,223.1,0.18292444]
[1693493738655,0.07342234,223.42,223.08,0.18292444]
[1693493738958,0.07342234,223.42,223.09,0.18292444]
[1693493739152,0.07342234,223.42,223.08,0.18292444]
[1693493739360,0.07342234,223.42,223.09,0.18292444]
[1693493739555,0.07342234,223.42,223.07,0.07313536]
[1693493739556,0.07342234,223.43,223.1,0.18292444]
[1693493739752,0.07342234,223.43,223.08,0.18292444]
[1693493739953,0.07342234,223.43,223.09,0.18292444]
[1693493740157,0.07342234,223.43,223.08,0.18292444]
[1693493740352,0.07342234,223.43,223.09,0.18292444]
[1693493740554,0.07342234,223.43,223.1,0.18292444]
[1693493740756,0.07342234,223.43,223.08,0.18292444]
[1693493740952,0.07342234,223.43,223.09,0.18292444]
[1693493741159,0.07342234,223.43,223.08,0.18292444]
[1693493741359,0.07342234,223.43,223.09,0.18292444]
[1693493741662,0.07342234,223.43,223.1,0.18292444]
[1693493741963,0.07342234,223.43,223.11,0.18292444]
[1693493742160,0.07342234,223.43,223.12,0.18292444]
[1693493742358,0.07342234,223.43,223.08,0.18292444]
[1693493742552,0.07342234,223.43,223.09,0.18292444]
[1693493742761,0.07342234,223.43,223.08,0.18292444]
[1693493743061,0.07342234,223.43,223.09,0.18292444]
[1693493743261,0.07342234,223.43,223.1,0.18292444]
[1693493743462,0.07342234,223.43,223.08,0.18292444]
[1693493743662,0.07342234,223.43,223.09,0.18292444]
[1693493743962,0.07342234,223.43,223.1,0.18292444]
[1693493744157,0.07342234,223.43,223.08,0.18292444]
[1693493744362,0.07342234,223.43,223.09,0.18292444]
[1693493744562,0.07342234,223.43,223.08,0.18292444]
[1693493744762,0.07342234,223.43,223.09,0.18292444]
[1693493744963,0.07342234,223.43,223.1,0.18292444]
[1693493745155,0.07342234,223.43,223.08,0.18292444]
[1693493745358,0.07342234,223.43,223.09,0.18292444]
[1693493745664,0.07342234,223.43,223.1,0.18292444]
[1693493745864,0.07342234,223.43,223.08,0.18292444]
[1693493746060,0.07342234,223.43,223.09,0.18292444]
[1693493746259,0.07342234,223.43,223.1,0.18292444]
[1693493746565,0.07342234,223.43,223.11,0.18292444]
[1693493746765,0.07342234,223.43,223.08,0.18292444]
[1693493746963,0.07342234,223.43,223.09,0.18292444]
[1693493747266,0.07342234,223.43,223.1,0.18292444]
[1693493747461,0.07342234,223.43,223.08,0.18292444]
[1693493747666,0.07342234,223.43,223.09,0.18292444]
[1693493747867,0.07342234,223.43,223.1,0.18292444]
[1693493748068,0.07342234,223.42,223.11,0.18292444]
[1693493748270,0.07342234,223.42,223.07,0.18292444]
[1693493748572,0.07342234,223.42,223.08,0.18292444]
[1693493748766,0.07342234,223.42,223.07,0.18292444]
[1693493748967,0.07342234,223.42,223.08,0.18292444]
[1693493749169,0.07342234,223.42,223.09,0.18292444]
[1693493749370,0.07342234,223.42,223.07,0.18292444]
[1693493749570,0.07342234,223.42,223.08,0.18292444]
[1693493749767,0.07342234,223.42,223.06,0.07313536]
[1693493749768,0.07342234,223.42,223.07,0.2560598]
[1693493750073,0.07342234,223.42,223.08,0.18292444]
[1693493754278,0.07342234,223.41,223.08,0.18292444]
[1693493755276,0.07342234,223.41,223.08,0.2560598]
[1693493755477,0.07342234,223.41,223.09,0.18292444]
[1693493757478,0.07342234,223.4,223.09,0.18292444]
[1693493758281,0.07342234,223.39,223.09,0.18292444]
[1693493759283,0.07342234,223.39,223.09,0.2560598]
[1693493759582,0.07342234,223.39,223.1,0.18292444]
[1693493760283,0.07342234,223.38,223.1,0.2560598]
[1693493760482,0.07342234,223.38,223.11,0.18292444]
[1693493761281,0.07342234,223.37,223.11,0.2560598]
[1693493761483,0.07342234,223.38,223.12,0.2560598]
[1693493761685,0.07342234,223.38,223.13,0.18292444]
[1693493762486,0.07342234,223.38,223.15,0.07313536]
[1693493762487,0.07342234,223.36,223.15,0.07313536]
[1693493762679,0.07342234,223.36,223.16,0.18292444]
[1693493763580,0.07342234,223.37,223.16,0.18292444]
[1693493765581,0.07342234,223.38,223.16,0.18292444]
[1693493769387,0.07342234,223.38,223.17,0.18292444]
[1693493769582,0.07342234,223.38,223.14,0.07313536]
[1693493769785,0.07342234,223.38,223.15,0.18281253]
[1693493770587,0.07342234,223.39,223.15,0.18281253]
[1693493770988,0.07342234,223.39,223.15,0.25594789]
[1693493771186,0.07342234,223.39,223.16,0.18281253]
[1693493772688,0.07342234,223.39,223.17,0.18281253]
[1693493772889,0.07342234,223.39,223.15,0.18281253]
[1693493773090,0.07342234,223.39,223.16,0.18281253]
[1693493773290,0.07342234,223.39,223.15,0.18281253]
[1693493773484,0.07342234,223.39,223.16,0.18281253]
[1693493773687,0.07342234,223.39,223.17,0.18281253]
[1693493773887,0.07342234,223.39,223.14,0.07313536]
[1693493774089,0.07342234,223.39,223.15,0.18282401]
[1693493774890,0.07342234,223.4,223.15,0.18282401]
[1693493775994,0.07342234,223.39,223.15,0.18282401]
[1693493776191,0.07342234,223.4,223.15,0.18282401]
[1693493782399,0.07342234,223.41,223.15,0.25595937]
[1693493782698,0.07342234,223.41,223.16,0.18282401]
[1693493784798,0.07342234,223.42,223.16,0.25595937]
[1693493785199,0.07342234,223.42,223.17,0.18282401]
[1693493787000,0.07342234,223.43,223.17,0.18282401]
[1693493787201,0.07342234,223.42,223.17,0.18282401]
[1693493788403,0.07342234,223.42,223.16,0.18282401]
[1693493788605,0.07342234,223.42,223.17,0.18282401]
[1693493788804,0.07342234,223.42,223.16,0.18282401]
[1693493789004,0.07342234,223.42,223.17,0.18282401]
[1693493789197,0.07342234,223.42,223.18,0.18282401]
[1693493789402,0.07342234,223.42,223.19,0.18282401]
[1693493789704,0.07342234,223.42,223.15,0.07313536]
[1693493789907,0.07342234,223.41,223.16,0.18278571]
[1693493793203,0.07342234,223.4,223.16,0.18278571]
[1693493793399,0.07342234,223.41,223.16,0.25592107]
[1693493793600,0.07342234,223.41,223.17,0.18278571]
[1693493794108,0.07342234,223.4,223.17,0.18278571]
[1693493797614,0.07342234,223.39,223.17,0.18278571]
[1693493820531,0.07342234,223.39,223.17,0.25592107]
[1693493820830,0.07342234,223.39,223.18,0.18278571]
[1693493821032,0.07342234,223.38,223.18,0.18278571]
[1693493821232,0.07342234,223.39,223.17,0.25592107]
[1693493821426,0.07342234,223.39,223.18,0.18280988]
[1693493821629,0.07342234,223.38,223.18,0.18280988]
[1693493830539,0.07342234,223.37,223.18,0.18280988]
[1693493830740,0.07342234,223.37,223.17,0.07313536]
[1693493830939,0.07342234,223.37,223.16,0.07313536]
[1693493831140,0.07342234,223.37,223.17,0.18285291]
[1693493831636,0.07342234,223.37,223.17,0.25598827]
[1693493831941,0.07342234,223.37,223.17,0.07313536]